[Event "2nd Serbian League-Vojvodina 2023"]
[Site "Novi Sad"]
[Date "2023.11.09"]
[Round "11.22"]
[White "Varga, Robert"]
[Black "Juhasz, Bence R"]
[Result "0-1"]
[ECO "E62"]
[WhiteElo "2043"]
[BlackElo "2210"]
[Annotator "RC"]
[PlyCount "90"]
[EventDate "2023.10.22"]
[EventType "team-tourn"]
[EventCountry "SRB"]
[SourceTitle "playchess.com"]
[Source "ChessBase"]
[SourceQuality "1"]
[TimeControl "40/5400+30:1800+30"]

1. d4 {[%emt 1:31:00]} Nf6 {[%emt 1:31:00]} 2. c4 {[%emt 0:00:30]} g6 {[%emt 0:00:30]} 3. Nf3 {[%emt 0:00:30]} Bg7 {[%emt 0:00:30]} 4. Nc3 {[%emt 0:00:30]} O-O {[%emt 0:00:30]} 5. g3 {[%emt 0:00:30]} d6 {[%emt 0:00:30]} 6. Bg2 {[%emt 0:00:30]} Nc6 {[%emt 0:00:30]} 7. O-O {[%emt 0:00:30]} e5 {[%emt 0:00:30]} 8. dxe5 {[%emt 0:00:30]} dxe5 {[%emt 0:00:30]} 9. Qxd8 {[%emt 0:00:30]} Rxd8 {[%emt 0:00:30]} 10. Bg5 {[%emt 0:00:30]} Be6 {[%emt 0:00:30]} 11. b3 {[%emt 0:00:30]} h6 {[%emt 0:00:30]} 12. Bxf6 {[%emt 0:00:30]} Bxf6 {[%emt 0:00:30]} 13. Rad1 {[%emt 0:00:30]} Nb4 {[%emt 0:00:30]} 14. Nb5 {[%emt 0:00:30]} Rdc8 {[%emt 0:00:30]} 15. Nd2 {[%emt 0:00:30]} a6 {[%emt 0:00:30]} 16. Nc3 {[%emt 0:00:30]} c6 {[%emt 0:00:30]} 17. Nde4 {[%emt 0:00:30]} Be7 {[%emt 0:00:30]} 18. Nd6 {[%emt 0:00:30]} Rc7 {[%emt 0:00:30]} 19. Rd2 {[%emt 0:00:30]} Rd8 {[%emt 0:00:30]} 20. Rfd1 {[%emt 0:00:30]} Rcd7 {[%emt 0:00:30]} 21. Nde4 {[%emt 0:00:30]} Rxd2 {[%emt 0:00:30]} 22. Rxd2 {[%emt 0:00:30]} Rxd2 {[%emt 0:00:30]} 23. Nxd2 {[%emt 0:00:30]} f5 {[%emt 0:00:30]} 24. Kf1 {[%emt 0:00:30]} a5 {[%emt 0:00:30]} 25. e3 {[%emt 0:00:30]} Kf7 {[%emt 0:00:30]} 26. Ke2 {[%emt 0:00:30]} Kf6 {[%emt 0:00:30]} 27. h4 {[%emt 0:00:30]} e4 {[%emt 0:00:30]} 28. f3 {[%emt 0:00:30]} exf3+ {[%emt 0:00:30]} 29. Bxf3 {[%emt 0:00:30]} Bd6 {[%emt 0:00:30]} 30. Kf2 {[%emt 0:00:30]} Be5 {[%emt 0:00:30]} 31. Ndb1 {[%emt 0:00:30]} Ke7 {[%emt 0:00:30]} 32. e4 {[%emt 0:00:30]} f4 {[%emt 0:00:30]} 33. gxf4 {[%emt 0:00:30]} Bxf4 {[%emt 0:00:30]} 34. Be2 {[%emt 0:00:30]} Be5 {[%emt 0:00:30]} 35. a3 {[%emt 0:00:30]} Nc2 {[%emt 0:00:30]} 36. Bd1 {[%emt 0:00:30]} Nxa3 {[%emt 0:00:30]} 37. Nxa3 {[%emt 0:00:30]} Bxc3 {[%emt 0:00:30]} 38. Nc2 {[%emt 0:00:30]} h5 {[%emt 0:00:30]} 39. Ne1 {[%emt 0:00:30]} Kd6 {[%emt 0:00:30]} 40. Nd3 {[%emt 0:00:30]} b6 {[%emt 0:00:30]} 41. Ke3 {[%emt 0:30:30]} Bf6 {[%emt 0:30:30]} 42. Nf4 {[%emt 0:00:30]} Bf7 {[%emt 0:00:30]} 43. Ng2 {[%emt 0:00:30]} b5 {[%emt 0:00:30]} 44. cxb5 {[%emt 0:00:30]} cxb5 {[%emt 0:00:30]} 45. Bc2 {[%emt 0:00:30]} Kc5 {[%emt 0:00:30]} 0-1

[Event "2nd Serbian League-Vojvodina 2023"]
[Site "Novi Sad"]
[Date "2023.11.09"]
[Round "11.23"]
[White "Kecskemeti, Arpad"]
[Black "Petronijevic, Ognjen"]
[Result "1/2-1/2"]
[ECO "C45"]
[WhiteElo "2185"]
[BlackElo "1836"]
[Annotator "RC"]
[PlyCount "86"]
[EventDate "2023.10.22"]
[EventType "team-tourn"]
[EventCountry "SRB"]
[SourceTitle "playchess.com"]
[Source "ChessBase"]
[SourceQuality "1"]
[TimeControl "40/5400+30:1800+30"]

1. e4 {[%emt 1:31:00]} e5 {[%emt 1:31:00]} 2. Nf3 {[%emt 0:00:30]} Nc6 {[%emt 0:00:30]} 3. d4 {[%emt 0:00:30]} exd4 {[%emt 0:00:30]} 4. Nxd4 {[%emt 0:00:30]} Bc5 {[%emt 0:00:30]} 5. Nb3 {[%emt 0:00:30]} Bb6 {[%emt 0:00:30]} 6. Nc3 {[%emt 0:00:30]} Qf6 {[%emt 0:00:30]} 7. Qe2 {[%emt 0:00:30]} Nge7 {[%emt 0:00:30]} 8. Be3 {[%emt 0:00:30]} Nd4 {[%emt 0:00:30]} 9. Nxd4 {[%emt 0:00:30]} Bxd4 {[%emt 0:00:30]} 10. Bxd4 {[%emt 0:00:30]} Qxd4 {[%emt 0:00:30]} 11. Rd1 {[%emt 0:00:30]} Qb4 {[%emt 0:00:30]} 12. Qb5 {[%emt 0:00:30]} Nc6 {[%emt 0:00:30]} 13. Qxb4 {[%emt 0:00:30]} Nxb4 {[%emt 0:00:30]} 14. Kd2 {[%emt 0:00:30]} d6 {[%emt 0:00:30]} 15. Bb5+ {[%emt 0:00:30]} Bd7 {[%emt 0:00:30]} 16. a3 {[%emt 0:00:30]} Nc6 {[%emt 0:00:30]} 17. Nd5 {[%emt 0:00:30]} O-O-O {[%emt 0:00:30]} 18. Rhe1 {[%emt 0:00:30]} Rhe8 {[%emt 0:00:30]} 19. f3 {[%emt 0:00:30]} Ne7 {[%emt 0:00:30]} 20. Bxd7+ {[%emt 0:00:30]} Rxd7 {[%emt 0:00:30]} 21. Nc3 {[%emt 0:00:30]} Ng6 {[%emt 0:00:30]} 22. b3 {[%emt 0:00:30]} Nf4 {[%emt 0:00:30]} 23. g3 {[%emt 0:00:30]} Ne6 {[%emt 0:00:30]} 24. Ke3 {[%emt 0:00:30]} f6 {[%emt 0:00:30]} 25. f4 {[%emt 0:00:30]} c6 {[%emt 0:00:30]} 26. Kf3 {[%emt 0:00:30]} Kc7 {[%emt 0:00:30]} 27. h4 {[%emt 0:00:30]} Rde7 {[%emt 0:00:30]} 28. g4 {[%emt 0:00:30]} d5 {[%emt 0:00:30]} 29. Re2 {[%emt 0:00:30]} dxe4+ {[%emt 0:00:30]} 30. Rxe4 {[%emt 0:00:30]} Nc5 {[%emt 0:00:30]} 31. Rxe7+ {[%emt 0:00:30]} Rxe7 {[%emt 0:00:30]} 32. b4 {[%emt 0:00:30]} Nd7 {[%emt 0:00:30]} 33. Ne4 {[%emt 0:00:30]} Nb6 {[%emt 0:00:30]} 34. Rd3 {[%emt 0:00:30]} Nd7 {[%emt 0:00:30]} 35. Ng3 {[%emt 0:00:30]} g5 {[%emt 0:00:30]} 36. hxg5 {[%emt 0:00:30]} fxg5 {[%emt 0:00:30]} 37. Re3 {[%emt 0:00:30]} Rxe3+ {[%emt 0:00:30]} 38. Kxe3 {[%emt 0:00:30]} gxf4+ {[%emt 0:00:30]} 39. Kxf4 {[%emt 0:00:30]} Kd6 {[%emt 0:00:30]} 40. c4 {[%emt 0:00:30]} Ke6 {[%emt 0:00:30]} 41. Nf5 {[%emt 0:30:30]} Ne5 {[%emt 0:30:30]} 42. Nd4+ {[%emt 0:00:30]} Kd6 {[%emt 0:00:30]} 43. Nf5+ {[%emt 0:00:30]} Ke6 {[%emt 0:00:30]} 1/2-1/2

[Event "2nd Serbian League-Vojvodina 2023"]
[Site "Novi Sad"]
[Date "2023.11.09"]
[Round "11.24"]
[White "Meseldzija, Jovan"]
[Black "Kler, Borko"]
[Result "0-1"]
[ECO "B83"]
[WhiteElo "1639"]
[BlackElo "2110"]
[Annotator "RC"]
[PlyCount "79"]
[EventDate "2023.10.22"]
[EventType "team-tourn"]
[EventCountry "SRB"]
[SourceTitle "playchess.com"]
[Source "ChessBase"]
[SourceQuality "1"]
[TimeControl "40/5400+30:1800+30"]

1. e4 {[%emt 1:31:00]} c5 {[%emt 1:31:00]} 2. Nf3 {[%emt 0:00:00]} d6 {[%emt 0:00:00]} 3. d4 {[%emt 0:00:00]} cxd4 {[%emt 0:00:00]} 4. Nxd4 {[%emt 0:01:30]} Nf6 {[%emt 0:00:00]} 5. Nc3 e6 {[%emt 0:02:00]} 6. Be3 {[%emt 0:01:00]} Be7 {[%emt 0:00:00]} 7. Be2 {[%emt 0:00:00]} O-O 8. O-O {[%emt 0:00:00]} Nc6 9. f4 {[%emt 0:00:00]} Bd7 {[%emt 0:00:00]} 10. Bf3 Nxd4 {[%emt 0:00:00]} 11. Bxd4 Bc6 {[%emt 0:03:00]} 12. Be3 {[%emt 0:00:00]} Qc7 {[%emt 0:00:30]} 13. Qd2 {[%emt 0:00:00]} b5 {[%emt 0:00:00]} 14. e5 {[%emt 0:00:00]} dxe5 {[%emt 0:00:00]} 15. fxe5 {[%emt 0:00:00]} Nd7 16. Bxc6 {[%emt 0:05:00]} Qxc6 {[%emt 0:00:00]} 17. Bd4 {[%emt 0:00:00]} Bc5 {[%emt 0:00:00]} 18. Kh1 {[%emt 0:00:00]} b4 {[%emt 0:00:00]} 19. Ne2 Qd5 {[%emt 0:03:30]} 20. Rad1 {[%emt 0:00:00]} Nxe5 21. Qg5 {[%emt 0:00:00]} f6 {[%emt 0:00:00]} 22. Qh5 Bxd4 {[%emt 0:01:30]} 23. Rxd4 {[%emt 0:00:00]} Qc5 24. Rh4 {[%emt 0:00:00]} Qxc2 25. Nd4 {[%emt 0:04:30]} Qg6 {[%emt 0:01:30]} 26. Nxe6 {[%emt 0:00:30]} Qxh5 {[%emt 0:00:00]} 27. Rxh5 {[%emt 0:00:00]} Rfc8 28. Rh3 {[%emt 0:00:00]} Rc2 29. Rg3 {[%emt 0:01:30]} Ng6 {[%emt 0:00:00]} 30. Rb3 {[%emt 0:00:00]} Re8 31. Nd4 {[%emt 0:00:00]} Rc4 32. Nb5 {[%emt 0:00:00]} Re5 33. Nxa7 {[%emt 0:02:00]} Ra5 {[%emt 0:04:00]} 34. Rxb4 {[%emt 0:00:00]} Rxb4 {[%emt 0:00:00]} 35. Nc6 {[%emt 0:00:00]} Rab5 {[%emt 0:00:00]} 36. Nxb4 {[%emt 0:00:00]} Rxb4 {[%emt 0:00:00]} 37. b3 {[%emt 0:02:00]} Ne5 {[%emt 0:00:00]} 38. Rb1 {[%emt 0:00:00]} Kf7 39. Kg1 {[%emt 0:00:00]} Ke6 40. a3 {[%emt 0:01:30]} 0-1